[Event "Polish Youth 1st League 2022"]
[Site "Lublin"]
[Date "2022.06.27"]
[Round "3.4"]
[White "Rozanski, Mateusz"]
[Black "Rozek, Michal"]
[Result "0-1"]
[ECO "C65"]
[WhiteElo "1720"]
[BlackElo "1533"]
[Annotator "NA RC"]
[PlyCount "110"]
[EventDate "2022.06.24"]
[EventType "team-tourn"]
[EventCountry "POL"]
[SourceTitle "playchess.com"]
[Source "ChessBase"]
[SourceQuality "1"]
[TimeControl "40/5400+30:1800+30"]

1. e4 {[%emt 0:00:02]} e5 {[%emt 0:00:07]} 2. Nf3 {[%emt 0:00:29]} Nc6 {[%emt 0:00:09]} 3. Bb5 {[%emt 0:00:16]} Nf6 {[%emt 0:00:09]} 4. d3 {[%emt 0:00:12]} Bc5 {[%emt 0:00:22]} 5. O-O {[%emt 0:00:29]} d6 {[%emt 0:01:49]} 6. c3 {[%emt 0:01:39]} O-O {[%emt 0:01:48]} 7. d4 {[%emt 0:02:43]} Bb6 {[%emt 0:08:30]} 8. Bxc6 {[%emt 0:09:09]} bxc6 {[%emt 0:00:13]} 9. Qd3 {[%emt 0:01:40]} Qe7 {[%emt 0:04:15]} 10. Re1 {[%emt 0:01:56]} h6 {[%emt 0:05:06]} 11. h3 {[%emt 0:01:53]} Re8 {[%emt 0:03:54]} 12. Nbd2 {[%emt 0:03:06]} a5 {[%emt 0:05:09]} 13. b3 {[%emt 0:03:20]} a4 {[%emt 0:11:06]} 14. Ba3 {[%emt 0:01:46]} Qe6 {[%emt 0:03:09]} 15. Qc2 {[%emt 0:06:12]} Nh5 {[%emt 0:05:20]} 16. dxe5 {[%emt 0:02:25]} Nf4 {[%emt 0:08:23]} 17. Nh4 {[%emt 0:02:22]} Qxe5 {[%emt 0:05:01]} 18. Ndf3 {[%emt 0:00:38]} Qf6 {[%emt 0:08:11]} 19. Bc1 {[%emt 0:03:45]} axb3 {[%emt 0:02:29]} 20. Qxb3 {[%emt 0:02:09]} Bxf2+ {[%emt 0:04:21]} 21. Kxf2 {[%emt 0:02:43]} Nd3+ {[%emt 0:00:10]} 22. Ke2 {[%emt 0:00:04]} Nxe1 {[%emt 0:00:19]} 23. Kxe1 {[%emt 0:00:05]} Rxe4+ {[%emt 0:00:13]} 24. Kd1 {[%emt 0:00:21]} g5 {[%emt 0:01:29]} 25. Qc2 {[%emt 0:03:16]} d5 {[%emt 0:02:56]} 26. Bb2 {[%emt 0:00:20]} gxh4 {[%emt 0:03:31]} 27. c4 {[%emt 0:00:21]} Qf5 {[%emt 0:06:07]} 28. Qd2 {[%emt 0:01:50]} Qf4 {[%emt 0:01:08]} 29. cxd5 {[%emt 0:01:05]} Qxd2+ {[%emt 0:00:59]} 30. Nxd2 {[%emt 0:00:10]} Rea4 {[%emt 0:00:50]} 31. dxc6 {[%emt 0:01:42]} Rxa2 {[%emt 0:04:45]} 32. Rxa2 {[%emt 0:00:04]} Rxa2 {[%emt 0:00:06]} 33. Be5 {[%emt 0:00:05]} Be6 {[%emt 0:01:44]} 34. Ne4 {[%emt 0:00:58]} Bb3+ {[%emt 0:01:24]} 35. Ke1 {[%emt 0:00:17]} Rc2 {[%emt 0:00:42]} 36. Nc3 {[%emt 0:02:00]} Rxg2 {[%emt 0:00:41]} 37. Bxc7 {[%emt 0:00:09]} Rg6 {[%emt 0:00:23]} 38. Bd8 {[%emt 0:00:19]} Rxc6 {[%emt 0:00:11]} 39. Ne2 {[%emt 0:00:19]} Be6 {[%emt 0:00:47]} 40. Bxh4 {[%emt 0:00:00]} Bxh3 {[%emt 0:00:00]} 41. Kf2 {[%emt 0:01:19]} Be6 {[%emt 0:02:33]} 42. Nf4 {[%emt 0:02:37]} Rc3 {[%emt 0:02:04]} 43. Bf6 {[%emt 0:01:01]} Rb3 {[%emt 0:00:48]} 44. Kg2 {[%emt 0:03:56]} Bg4 {[%emt 0:01:45]} 45. Kh2 {[%emt 0:02:20]} h5 {[%emt 0:02:09]} 46. Kg2 {[%emt 0:01:37]} Kf8 {[%emt 0:02:14]} 47. Kh2 {[%emt 0:02:00]} Ke8 {[%emt 0:01:00]} 48. Kg2 {[%emt 0:00:50]} Kd7 {[%emt 0:01:36]} 49. Kh2 {[%emt 0:03:09]} Kd6 {[%emt 0:01:25]} 50. Kg2 {[%emt 0:01:39]} Rf3 {[%emt 0:02:37]} 51. Bg5 {[%emt 0:01:41]} Ke5 {[%emt 0:01:33]} 52. Ne2 {[%emt 0:01:39]} Rf5 {[%emt 0:00:34]} 53. Bf4+ {[%emt 0:00:21]} Rxf4 {[%emt 0:00:14]} 54. Nxf4 {[%emt 0:00:08]} Kxf4 {[%emt 0:00:08]} 55. Kh2 {[%emt 0:00:32]} Ke3 0-1

[Event "Polish Youth 1st League 2022"]
[Site "Lublin"]
[Date "2022.06.27"]
[Round "3.5"]
[White "Mroz, Lena"]
[Black "Krzyzosiak, Marta"]
[Result "1/2-1/2"]
[ECO "C17"]
[WhiteElo "1719"]
[BlackElo "1666"]
[Annotator "NA RC"]
[PlyCount "65"]
[EventDate "2022.06.24"]
[EventType "team-tourn"]
[EventCountry "POL"]
[SourceTitle "playchess.com"]
[Source "ChessBase"]
[SourceQuality "1"]
[TimeControl "40/5400+30:1800+30"]

1. e4 {[%emt 0:00:02]} e6 {[%emt 0:00:05]} 2. d4 {[%emt 0:00:08]} d5 {[%emt 0:00:07]} 3. Nc3 {[%emt 0:00:16]} Bb4 {[%emt 0:00:11]} 4. e5 {[%emt 0:00:11]} c5 {[%emt 0:00:07]} 5. Bd2 {[%emt 0:00:17]} Nc6 {[%emt 0:00:53]} 6. Nb5 {[%emt 0:06:47]} Bxd2+ {[%emt 0:13:00]} 7. Qxd2 {[%emt 0:00:20]} Nxd4 {[%emt 0:01:17]} 8. Nxd4 {[%emt 0:03:04]} cxd4 {[%emt 0:00:05]} 9. O-O-O {[%emt 0:08:34]} Ne7 {[%emt 0:05:49]} 10. Kb1 {[%emt 0:09:25]} Qc7 {[%emt 0:06:37]} 11. Qg5 {[%emt 0:07:20]} Nf5 {[%emt 0:06:55]} 12. g4 {[%emt 0:02:26]} h6 {[%emt 0:00:49]} 13. Qd2 {[%emt 0:01:39]} Ne7 {[%emt 0:02:01]} 14. f4 {[%emt 0:02:31]} Bd7 {[%emt 0:03:34]} 15. Qxd4 {[%emt 0:07:09]} Rc8 {[%emt 0:07:41]} 16. Qd2 {[%emt 0:09:08]} a5 {[%emt 0:05:19]} 17. Nf3 {[%emt 0:03:12]} b5 {[%emt 0:10:52]} 18. Nd4 {[%emt 0:03:26]} Rb8 {[%emt 0:00:42]} 19. Bd3 {[%emt 0:05:08]} b4 {[%emt 0:03:36]} 20. Rhe1 {[%emt 0:02:38]} Qc5 {[%emt 0:05:44]} 21. Qe3 {[%emt 0:06:00]} Nc6 {[%emt 0:02:00]} 22. Nb3 {[%emt 0:05:30]} Qxe3 {[%emt 0:05:31]} 23. Rxe3 {[%emt 0:00:02]} Ke7 {[%emt 0:00:45]} 24. Rf1 {[%emt 0:04:23]} h5 {[%emt 0:07:22]} 25. g5 {[%emt 0:12:28]} g6 {[%emt 0:00:37]} 26. h4 {[%emt 0:00:46]} Rb6 {[%emt 0:00:48]} 27. Rd1 {[%emt 0:00:27]} Ra8 {[%emt 0:00:17]} 28. Bf1 {[%emt 0:00:37]} Be8 {[%emt 0:00:25]} 29. Nc5 {[%emt 0:00:32]} Ra7 {[%emt 0:01:22]} 30. Na4 {[%emt 0:00:31]} Rb8 {[%emt 0:00:18]} 31. Nc5 {[%emt 0:00:11]} Rb6 {[%emt 0:00:28]} 32. Na4 {[%emt 0:00:10]} Rb8 {[%emt 0:00:42]} 33. Nc5 {[%emt 0:00:01]} 1/2-1/2

[Event "Polish Youth 1st League 2022"]
[Site "Lublin"]
[Date "2022.06.27"]
[Round "3.6"]
[White "Wieczorek, Maja"]
[Black "Lajdamik, Kinga"]
[Result "1/2-1/2"]
[ECO "B16"]
[WhiteElo "1316"]
[BlackElo "1308"]
[Annotator "NA RC"]
[PlyCount "81"]
[EventDate "2022.06.24"]
[EventType "team-tourn"]
[EventCountry "POL"]
[SourceTitle "playchess.com"]
[Source "ChessBase"]
[SourceQuality "1"]
[TimeControl "40/5400+30:1800+30"]

1. e4 {[%emt 0:00:04]} c6 {[%emt 0:00:06]} 2. d4 {[%emt 0:00:05]} d5 {[%emt 0:00:03]} 3. Nc3 {[%emt 0:00:05]} dxe4 {[%emt 0:00:06]} 4. Nxe4 {[%emt 0:00:08]} Nf6 {[%emt 0:00:04]} 5. Nxf6+ {[%emt 0:00:16]} gxf6 {[%emt 0:00:08]} 6. Nf3 {[%emt 0:09:53]} Bg4 {[%emt 0:00:06]} 7. Be2 {[%emt 0:07:25]} Qc7 {[%emt 0:01:00]} 8. Be3 {[%emt 0:03:03]} e6 {[%emt 0:00:32]} 9. Qd2 {[%emt 0:01:40]} Nd7 {[%emt 0:01:16]} 10. O-O-O {[%emt 0:01:50]} O-O-O {[%emt 0:02:15]} 11. Qc3 {[%emt 0:10:23]} Kb8 {[%emt 0:09:13]} 12. Qb3 {[%emt 0:10:33]} Nb6 {[%emt 0:03:44]} 13. c4 {[%emt 0:05:43]} e5 {[%emt 0:22:31]} 14. dxe5 {[%emt 0:08:40]} Rxd1+ {[%emt 0:00:39]} 15. Rxd1 {[%emt 0:00:11]} Bxf3 {[%emt 0:08:22]} 16. Bxf3 {[%emt 0:00:54]} fxe5 {[%emt 0:01:00]} 17. Bg4 {[%emt 0:11:00]} c5 {[%emt 0:01:54]} 18. Qd3 {[%emt 0:02:19]} h5 {[%emt 0:02:58]} 19. Bh3 {[%emt 0:02:51]} Be7 {[%emt 0:07:54]} 20. b3 {[%emt 0:02:19]} h4 {[%emt 0:13:43]} 21. Qf5 {[%emt 0:02:15]} Bd8 {[%emt 0:04:57]} 22. Bg5 {[%emt 0:03:41]} Be7 {[%emt 0:02:46]} 23. Bf6 {[%emt 0:01:38]} Bxf6 {[%emt 0:04:49]} 24. Qxf6 {[%emt 0:00:08]} Rf8 {[%emt 0:00:57]} 25. Qxh4 {[%emt 0:00:23]} f6 {[%emt 0:00:43]} 26. Qh6 {[%emt 0:01:28]} Qe7 {[%emt 0:00:09]} 27. Qd2 {[%emt 0:00:46]} Kc7 {[%emt 0:00:53]} 28. Qe3 {[%emt 0:01:30]} f5 {[%emt 0:02:09]} 29. Qd3 {[%emt 0:02:21]} Qf6 {[%emt 0:01:47]} 30. Qe3 {[%emt 0:01:34]} Nd7 {[%emt 0:01:58]} 31. Qd3 {[%emt 0:01:53]} Rf7 {[%emt 0:00:09]} 32. Qd2 {[%emt 0:01:13]} e4 {[%emt 0:01:14]} 33. Kb1 {[%emt 0:03:48]} Ne5 {[%emt 0:00:38]} 34. Qa5+ {[%emt 0:00:47]} b6 {[%emt 0:01:35]} 35. Qxa7+ {[%emt 0:00:50]} Kc6 {[%emt 0:00:03]} 36. Qa8+ {[%emt 0:00:46]} Kc7 {[%emt 0:00:20]} 37. Qa7+ {[%emt 0:00:36]} Kc6 {[%emt 0:00:09]} 38. Qa8+ {[%emt 0:01:41]} Kc7 {[%emt 0:00:07]} 39. Qa7+ {[%emt 0:01:20]} Kc6 {[%emt 0:00:05]} 40. Qa8+ {[%emt 0:00:00]} Kc7 {[%emt 0:00:00]} 41. Qa7+ {[%emt 0:09:04]} 1/2-1/2

[Event "Polish Youth 1st League 2022"]
[Site "Lublin"]
[Date "2022.06.27"]
[Round "3.7"]
[White "Jedraszek, Pawel"]
[Black "Suder, Jakub"]
[Result "0-1"]
[ECO "D30"]
[WhiteElo "1933"]
[BlackElo "2306"]
[Annotator "TA"]
[PlyCount "138"]
[EventDate "2022.06.24"]
[EventType "team-tourn"]
[EventCountry "POL"]
[SourceTitle "playchess.com"]
[Source "ChessBase"]
[SourceQuality "1"]
[TimeControl "40/5400+30:1800+30"]

{[%evp 9,138,0,0,7,10,7,0,16,2,0,0,-15,-14,-29,-17,-10,-6,0,23,17,42,7,0,0,0,0,0,-29,20,0,0,2,53,31,42,0,0,-15,-27,-16,-25,-24,-32,-51,-64,-67,0,0,0,0,0,0,0,0,0,0,0,0,0,-8,0,0,0,0,0,0,0,0,0,0,0,-23,-23,-24,-23,-23,-23,-83,-83,-155,-100,-341,-318,-815,-767,-2776,-779,-11330,-9020,-5081,-1637,-1034,-936,-1772,-1693,-1579,-1521,-5114,-5204,-4134,-2866,-10529,-5089,-11945,-11769,-3939,-2343,-29980,-29981,-29981,-29982,-29982,-29983,-29983,-29983,-29983,-29984,-29984,-29983,-29983,-29983,-29983,-29984,-29983,-29983,-29983,-29984,-29984,-29985,-29985,-29986]} 1. d4 {[%emt 0:00:02]} d5 {[%emt 0:00:05][%cal Bd7d5,Bd5c4][%mdl 32]} 2. c4 {[%emt 0:00:05]} e6 {[%emt 0:00:04]} 3. Nf3 {[%emt 0:00:07]} a6 {[%emt 0:00:04]} 4. g3 {[%emt 0:00:54]} dxc4 {[%emt 0:00:05]} 5. Bg2 {[%emt 0:00:26]} b5 {[%emt 0:00:07]} 6. Ne5 {[%emt 0:02:11] D30: Queen's Gambit Declined: Systems without Nc3.} c6 {[%emt 0:00:19]} 7. O-O {[%emt 0:07:19]} Bb7 {[%emt 0:04:32]} 8. b3 {[%emt 0:07:32] The position is equal.} cxb3 {[%emt 0:00:30]} 9. axb3 {[%emt 0:00:01]} Nf6 {[%emt 0:02:06] [#]} 10. Ba3 $146 {[%emt 0:09:08]} ({Predecessor:} 10. e3 Nbd7 11. Nxc6 Qb6 12. Na5 Bxg2 13. Kxg2 Bb4 14. Bd2 Bxd2 15. Nxd2 O-O 16. b4 {1-0 (33) Janik,I (2469)-Bartel,M (2593) Chorzow 2019}) 10... Bxa3 {[%emt 0:01:22]} 11. Nxa3 {[%emt 0:00:02]} O-O {[%emt 0:02:08]} 12. Qd2 {[%emt 0:07:17]} Qd6 {[%emt 0:03:38]} 13. Rfc1 {[%emt 0:03:10]} Rd8 {[%emt 0:01:43]} 14. Qa5 {[%emt 0:08:57][%mdl 1024] White has compensation.} Rc8 {[%emt 0:06:55]} 15. e3 {[%emt 0:03:43]} (15. Qb6 $5 {[%cal Rb6b7]} Qc7 16. Qxc7 Rxc7 17. Nd3 $14) 15... Nbd7 {[%emt 0:02:10]} 16. Nd3 {[%emt 0:03:02]} Rab8 {[%emt 0:04:19]} 17. b4 {[%emt 0:09:56]} e5 {[%emt 0:03:02]} 18. Nc2 {[%emt 0:02:03][%cal Od4e5,Ba3c2,Bc2d4,Bd4f5,Bf5d6][%mdl 32]} Nd5 {[%emt 0:04:07]} (18... e4 $142 19. Nc5 Nxc5 20. bxc5 Qe6) 19. Nc5 {[%emt 0:05:49]} Nxc5 20. bxc5 {[%emt 0:00:02]} Qf6 {[%emt 0:05:26]} ({Better is} 20... Qe6 $11) 21. Bxd5 {[%emt 0:07:42]} (21. e4 $5 {[%cal Re4d5]} Ne7 22. Rd1 $11) 21... cxd5 {[%emt 0:00:09]} 22. dxe5 {[%emt 0:00:35]} Qe7 {[%emt 0:02:33]} 23. Nd4 {[%emt 0:02:22]} Rxc5 {[%emt 0:02:16]} 24. Qb6 {[%emt 0:01:12]} Rbc8 {[%emt 0:02:14]} 25. Rxc5 {[%emt 0:01:24]} Rxc5 {[%emt 0:00:05]} 26. Nf5 {[%emt 0:04:34]} Qc7 {[%emt 0:00:14]} 27. Qd6 {[%emt 0:00:27]} h5 {[%emt 0:05:37]} ({Black should try} 27... h6 $15 28. h4 b4) 28. e6 $11 {[%emt 0:02:02]} Qxd6 {[%emt 0:06:25]} 29. Nxd6 {[%emt 0:00:46][%mdl 4096] [#] Endgame Hoping for e7. KRB-KRN} Rc7 {[%emt 0:00:49]} 30. exf7+ {[%emt 0:01:42]} Kf8 {[%emt 0:00:40]} 31. Nxb7 {[%emt 0:00:07]} Rxb7 {[%emt 0:00:06]} 32. Rxa6 {[%emt 0:00:02] KR-KR} b4 {[%emt 0:01:15]} 33. Ra2 {[%emt 0:00:23]} Kxf7 {[%emt 0:00:23]} 34. Kf1 $1 {[%emt 0:00:41]} Ke6 {[%emt 0:02:50]} 35. Ke2 $1 {[%emt 0:01:10]} Kd6 {[%emt 0:04:43] [#] And now ...b3 would win.} 36. Kd3 {[%emt 0:03:08]} Kc5 {[%emt 0:01:52]} 37. Rc2+ {[%emt 0:04:11]} Kb5 {[%emt 0:02:50] Strongly threatening ...b3.} 38. Rc8 {[%emt 0:00:25]} Ra7 {[%emt 0:00:57]} 39. Rb8+ {[%emt 0:01:02]} Ka4 {[%emt 0:05:10]} 40. Kc2 {[%emt 0:00:00]} Ka3 {[%emt 0:00:00]} 41. Rb5 {[%emt 0:02:09]} Rc7+ {[%emt 0:02:09]} 42. Kb1 $1 {[%emt 0:02:14]} Rf7 {[%emt 0:02:55]} 43. f4 {[%emt 0:00:49]} (43. Ra5+ $1 $11 {keeps the balance.} Kb3 44. Ra2) 43... Re7 $17 {[%emt 0:00:56]} 44. Kc2 {[%emt 0:08:17]} (44. Ra5+ $142 Kb3 45. Rxd5) 44... Rc7+ {[%emt 0:00:06]} 45. Kd3 $2 {[%emt 0:10:14] This costs White the game.} (45. Kb1 $17 {was forced.}) 45... b3 $19 {[%emt 0:00:33] ...b2 is the strong threat.} 46. Rb8 $2 {[%emt 0:01:39]} (46. Kd4 Rc4+ 47. Kxd5) 46... Rc4 {[%emt 0:02:58] White must now prevent ...Rb4.} 47. h3 {[%emt 0:02:29]} b2 {[%emt 0:01:12]} (47... Rb4 $142 48. Ra8+ Ra4) 48. Ra8+ {[%emt 0:01:28]} Kb3 {[%emt 0:00:16]} 49. Rb8+ {[%emt 0:00:07]} Ka2 {[%emt 0:00:18]} (49... Rb4 $142 50. Rxb4+ Kxb4) 50. Ra8+ {[%emt 0:00:07]} Kb1 {[%emt 0:00:34]} 51. Kd2 {[%emt 0:00:06]} Rc2+ {[%emt 0:00:37]} 52. Kd1 {[%emt 0:00:05]} Rg2 {[%emt 0:01:19]} 53. g4 {[%emt 0:01:52]} hxg4 {[%emt 0:00:43]} 54. hxg4 {[%emt 0:00:02]} Rxg4 {[%emt 0:00:08][%cal Od5d4] aiming for ...d4!} 55. Kd2 {[%emt 0:05:33]} d4 {[%emt 0:00:32]} 56. exd4 {[%emt 0:00:11]} Rxf4 {[%emt 0:00:05]} 57. Rb8 {[%emt 0:00:56]} Rf2+ {[%emt 0:00:37]} 58. Ke1 {[%emt 0:00:35]} Rh2 {[%emt 0:00:10] Black mates.} 59. Kd1 {[%emt 0:00:42]} Ka2 {[%emt 0:00:32]} 60. Ra8+ {[%emt 0:01:30]} Kb3 {[%emt 0:00:07][%cal Rb2b1]} 61. Rb8+ {[%emt 0:01:57]} Kc4 {[%emt 0:00:20]} 62. d5 {[%emt 0:00:46]} Kxd5 {[%emt 0:00:12]} 63. Rd8+ {[%emt 0:00:10]} Ke6 {[%emt 0:00:14][%cal Rb2b1]} 64. Re8+ {[%emt 0:00:05]} Kf7 {[%emt 0:00:05][%cal Rb2b1]} 65. Rb8 {[%emt 0:00:06]} g5 {[%emt 0:00:06]} 66. Rb7+ {[%emt 0:00:20]} Kg6 {[%emt 0:00:07]} 67. Rb6+ {[%emt 0:00:04]} Kh5 {[%emt 0:00:05]} 68. Rb5 {[%emt 0:00:05]} b1=Q+ {[%emt 0:00:22]} 69. Rxb1 {[%emt 0:00:03]} Rh1+ {[%emt 0:00:05] Weighted Error Value: White=0.92/Black=0.26 (precise)} 0-1

[Event "Polish Youth 1st League 2022"]
[Site "Lublin"]
[Date "2022.06.27"]
[Round "3.8"]
[White "Dziewonski, Dariusz"]
[Black "Klaska, Szymon"]
[Result "1-0"]
[ECO "B76"]
[WhiteElo "1976"]
[BlackElo "1563"]
[Annotator "RC"]
[PlyCount "77"]
[EventDate "2022.06.24"]
[EventType "team-tourn"]
[EventCountry "POL"]
[SourceTitle "playchess.com"]
[Source "ChessBase"]
[SourceQuality "1"]
[TimeControl "40/5400+30:1800+30"]

1. e4 c5 2. Nf3 d6 3. d4 cxd4 4. Nxd4 Nf6 5. Nc3 g6 6. Be3 Bg7 7. f3 O-O 8. Qd2 Nc6 9. O-O-O Nxd4 10. Bxd4 Be6 11. Kb1 Qc7 12. h4 Rfc8 13. h5 Qa5 14. hxg6 hxg6 15. a3 Rab8 16. Bd3 b5 17. Qg5 Qc7 18. e5 dxe5 19. Bxe5 Qc5 20. f4 Ng4 21. Bxb8 Qxg5 22. fxg5 Rxb8 23. Ne4 b4 24. axb4 Rxb4 25. c3 Rb8 26. Kc1 Be5 27. g3 Bd5 28. Rhe1 Bc7 29. Re2 e6 30. Rf1 Kg7 31. Nf6 Ne5 32. Nxd5 exd5 33. Kc2 Bd6 34. Rf6 Nxd3 35. Rxd6 Nxb2 36. Rxd5 Rb7 37. Re4 a6 38. Ra5 Rb6 39. Ra2 1-0

[Event "Polish Youth 1st League 2022"]
[Site "Lublin"]
[Date "2022.06.27"]
[Round "3.9"]
[White "Ugorek, Kacper"]
[Black "Maj, Samuel"]
[Result "0-1"]
[ECO "B90"]
[WhiteElo "1696"]
[BlackElo "1906"]
[Annotator "RC"]
[PlyCount "114"]
[EventDate "2022.06.24"]
[EventType "team-tourn"]
[EventCountry "POL"]
[SourceTitle "playchess.com"]
[Source "ChessBase"]
[SourceQuality "1"]
[TimeControl "40/5400+30:1800+30"]

1. e4 {[%emt 0:00:03]} c5 {[%emt 0:00:02]} 2. Nf3 {[%emt 0:00:05]} d6 {[%emt 0:00:07]} 3. d4 {[%emt 0:00:16]} cxd4 {[%emt 0:00:02]} 4. Nxd4 {[%emt 0:00:06]} Nf6 {[%emt 0:00:03]} 5. Nc3 {[%emt 0:00:08]} a6 {[%emt 0:00:02]} 6. Nb3 {[%emt 0:00:25]} e6 {[%emt 0:00:25]} 7. g4 {[%emt 0:01:04]} b5 {[%emt 0:00:14]} 8. a3 {[%emt 0:12:09]} Bb7 {[%emt 0:01:24]} 9. Bg2 {[%emt 0:02:03]} Be7 {[%emt 0:04:59]} 10. Be3 {[%emt 0:01:02]} Nc6 {[%emt 0:04:04]} 11. f4 {[%emt 0:03:02]} Nd7 {[%emt 0:03:33]} 12. O-O {[%emt 0:07:29]} Nb6 {[%emt 0:02:38]} 13. Bf2 {[%emt 0:12:22]} Nc4 {[%emt 0:02:12]} 14. Rb1 {[%emt 0:02:04]} g5 {[%emt 0:12:09]} 15. f5 {[%emt 0:09:14]} Bf6 {[%emt 0:05:46]} 16. Nd4 {[%emt 0:02:10]} Qe7 {[%emt 0:05:59]} 17. Nxc6 {[%emt 0:10:14]} Bxc6 {[%emt 0:00:25]} 18. Bd4 {[%emt 0:02:57]} Bxd4+ {[%emt 0:04:01]} 19. Qxd4 {[%emt 0:00:02]} Qa7 {[%emt 0:01:56]} 20. Rfd1 {[%emt 0:01:27]} Qxd4+ {[%emt 0:02:27]} 21. Rxd4 {[%emt 0:00:03]} Ke7 {[%emt 0:02:10]} 22. Kf2 {[%emt 0:01:12]} h5 {[%emt 0:02:59]} 23. h3 {[%emt 0:07:33]} hxg4 {[%emt 0:01:56]} 24. hxg4 {[%emt 0:00:02]} Rh4 {[%emt 0:01:26]} 25. Bf3 {[%emt 0:06:06]} Rah8 {[%emt 0:02:15]} 26. a4 {[%emt 0:08:17]} Rh2+ {[%emt 0:02:38]} 27. Bg2 {[%emt 0:03:43]} R8h4 {[%emt 0:05:01]} 28. axb5 {[%emt 0:01:02]} axb5 {[%emt 0:03:59]} 29. Rxc4 {[%emt 0:04:23]} bxc4 {[%emt 0:00:57]} 30. Kg3 {[%emt 0:00:52]} d5 {[%emt 0:06:11]} 31. exd5 {[%emt 0:00:52]} Bxd5 {[%emt 0:02:15]} 32. Nxd5+ {[%emt 0:00:12]} exd5 {[%emt 0:00:02]} 33. Rd1 {[%emt 0:00:47]} Rxg2+ {[%emt 0:02:21]} 34. Kxg2 {[%emt 0:00:02]} Rxg4+ {[%emt 0:00:08]} 35. Kh3 {[%emt 0:00:37]} Rh4+ {[%emt 0:00:59]} 36. Kg3 {[%emt 0:00:00]} Kd6 {[%emt 0:00:55]} 37. Ra1 {[%emt 0:03:55]} Ke5 {[%emt 0:04:13]} 38. Ra5 {[%emt 0:00:51]} Rd4 {[%emt 0:01:28]} 39. c3 {[%emt 0:00:33]} Rd2 {[%emt 0:01:32]} 40. Kg4 {[%emt 0:00:00]} Rg2+ {[%emt 0:00:00]} 41. Kh5 {[%emt 0:01:12]} Rxb2 {[%emt 0:05:36]} 42. Kxg5 {[%emt 0:00:38]} Rf2 {[%emt 0:00:26]} 43. f6 {[%emt 0:03:04]} Rxf6 {[%emt 0:00:15]} 44. Ra1 {[%emt 0:00:57]} Rf3 {[%emt 0:00:26]} 45. Re1+ {[%emt 0:00:18]} Kd6 {[%emt 0:00:17]} 46. Rc1 {[%emt 0:00:14]} Kc5 {[%emt 0:00:03]} 47. Kg4 {[%emt 0:00:31]} Rd3 {[%emt 0:00:48]} 48. Kf5 {[%emt 0:00:50]} Kb5 {[%emt 0:01:18]} 49. Kf6 {[%emt 0:00:36]} Ka4 {[%emt 0:00:22]} 50. Kxf7 {[%emt 0:00:06]} Kb3 {[%emt 0:00:18]} 51. Ke6 {[%emt 0:00:18]} Kb2 {[%emt 0:00:25]} 52. Rh1 {[%emt 0:00:26]} Kxc3 {[%emt 0:00:12]} 53. Kd6 {[%emt 0:00:08]} Kb2 {[%emt 0:00:29]} 54. Rh2+ {[%emt 0:00:11]} Kb3 {[%emt 0:00:13]} 55. Rh8 {[%emt 0:00:23]} c3 {[%emt 0:00:12]} 56. Rb8+ {[%emt 0:00:04]} Kc2 {[%emt 0:00:12]} 57. Kc5 {[%emt 0:00:03]} Kd2 {[%emt 0:00:35]} 0-1

[Event "Polish Youth 1st League 2022"]
[Site "Lublin"]
[Date "2022.06.27"]
[Round "3.10"]
[White "Jamrozik, Maciej"]
[Black "Dobosiewicz, Dawid"]
[Result "0-1"]
[ECO "B47"]
[WhiteElo "1251"]
[BlackElo "1795"]
[Annotator "NA RC"]
[PlyCount "104"]
[EventDate "2022.06.24"]
[EventType "team-tourn"]
[EventCountry "POL"]
[SourceTitle "playchess.com"]
[Source "ChessBase"]
[SourceQuality "1"]
[TimeControl "40/5400+30:1800+30"]

1. e4 {[%emt 0:00:03]} c5 {[%emt 0:00:11]} 2. Nf3 {[%emt 0:00:14]} e6 {[%emt 0:00:07]} 3. d4 {[%emt 0:00:14]} cxd4 {[%emt 0:00:04]} 4. Nxd4 {[%emt 0:00:09]} Nc6 {[%emt 0:00:04]} 5. Nc3 {[%emt 0:00:13]} Qc7 {[%emt 0:00:08]} 6. Ndb5 {[%emt 0:00:06]} Qb8 {[%emt 0:00:12]} 7. Be3 {[%emt 0:00:09]} a6 {[%emt 0:00:25]} 8. Bb6 {[%emt 0:00:17]} axb5 {[%emt 0:00:07]} 9. Nxb5 {[%emt 0:00:08]} Bb4+ {[%emt 0:00:07]} 10. c3 {[%emt 0:00:07]} Ba5 {[%emt 0:00:04]} 11. Nc7+ {[%emt 0:00:15]} Qxc7 {[%emt 0:00:04]} 12. Bxc7 {[%emt 0:00:09]} Bxc7 {[%emt 0:00:03]} 13. Qg4 {[%emt 0:00:42]} Be5 {[%emt 0:00:09]} 14. f4 {[%emt 0:00:08]} Nf6 {[%emt 0:00:39]} 15. Qf3 {[%emt 0:00:18]} Bc7 {[%emt 0:01:34]} 16. Bb5 {[%emt 0:01:55]} d5 {[%emt 0:16:25]} 17. e5 {[%emt 0:06:12]} Ne4 {[%emt 0:00:30]} 18. Bd3 {[%emt 0:00:45]} Nc5 {[%emt 0:01:05]} 19. Bc2 {[%emt 0:01:05]} Bb6 {[%emt 0:11:15]} 20. Qg4 {[%emt 0:04:36]} g6 {[%emt 0:00:44]} 21. h4 {[%emt 0:08:32]} h5 {[%emt 0:02:23]} 22. Qf3 {[%emt 0:03:46]} Na4 {[%emt 0:02:54]} 23. O-O-O {[%emt 0:07:13]} Bc5 {[%emt 0:08:57]} 24. g4 {[%emt 0:05:39]} d4 {[%emt 0:02:50]} 25. Bxa4 {[%emt 0:04:30]} Rxa4 {[%emt 0:00:08]} 26. a3 {[%emt 0:21:32]} hxg4 {[%emt 0:05:59]} 27. Qd3 {[%emt 0:04:59]} dxc3 {[%emt 0:10:01]} 28. Qxc3 {[%emt 0:05:30]} Bb6 {[%emt 0:00:18]} 29. b4 {[%emt 0:03:18]} Bd7 {[%emt 0:01:09]} 30. Rd3 {[%emt 0:01:46]} Ne7 {[%emt 0:00:21]} 31. Qe1 {[%emt 0:07:50]} Nd5 {[%emt 0:00:19]} 32. Qg3 {[%emt 0:01:02]} Bb5 {[%emt 0:00:37]} 33. Rxd5 {[%emt 0:07:54]} exd5 {[%emt 0:00:09]} 34. Qxg4 {[%emt 0:00:30]} Bd7 {[%emt 0:00:29]} 35. Qf3 {[%emt 0:00:49]} Be6 {[%emt 0:01:56]} 36. Qd3 {[%emt 0:01:57]} Ke7 {[%emt 0:02:41]} 37. Qb5 {[%emt 0:01:03]} Rc8+ {[%emt 0:00:14]} 38. Kd2 {[%emt 0:00:49]} Ra6 {[%emt 0:00:31]} 39. a4 {[%emt 0:00:36]} Bd7 {[%emt 0:01:00]} 40. Qxd5 {[%emt 0:00:00]} Bc6 {[%emt 0:00:00]} 41. Qd6+ {[%emt 0:06:53]} Ke8 {[%emt 0:00:33]} 42. Qf6 {[%emt 0:03:35]} Bxh1 {[%emt 0:00:25]} 43. Qh8+ {[%emt 0:00:35]} Kd7 {[%emt 0:00:06]} 44. Qg7 {[%emt 0:01:07]} Bd5 {[%emt 0:01:27]} 45. Kd1 {[%emt 0:01:24]} Rxa4 {[%emt 0:00:36]} 46. Qf6 {[%emt 0:00:25]} Ra1+ {[%emt 0:00:36]} 47. Kd2 {[%emt 0:00:19]} Ra2+ {[%emt 0:00:05]} 48. Kd3 {[%emt 0:00:21]} Ra3+ {[%emt 0:00:08]} 49. Kd2 {[%emt 0:00:04]} Be3+ {[%emt 0:00:11]} 50. Ke2 {[%emt 0:01:07]} Rc2+ {[%emt 0:00:05]} 51. Kd1 {[%emt 0:00:10]} Rd2+ {[%emt 0:00:04]} 52. Kc1 {[%emt 0:00:17]} Ra1# {[%emt 0:00:03]} 0-1